[Event "Live Chess"]
[Site "Chess.com"]
[Date "2024.06.02"]
[Round "-"]
[White "LanceMaster23"]
[Black "Duke_of_Bebington"]
[Result "1-0"]
[WhiteElo "1845"]
[BlackElo "1620"]
[TimeControl "300"]
[EndTime "17:27:19 PDT"]
[Termination "LanceMaster23 won by resignation"]

1. Nf3 {[%clk 0:04:57.8]} 1... d5 {[%clk 0:04:58.1]} 2. d4 {[%clk 0:04:57.2]}
2... Nf6 {[%clk 0:04:56.1]} 3. Bf4 {[%clk 0:04:56.6]} 3... Bf5 {[%clk
0:04:52.8]} 4. e3 {[%clk 0:04:55.6]} 4... e6 {[%clk 0:04:51.4]} 5. Nbd2 {[%clk
0:04:54.5]} 5... Bd6 {[%clk 0:04:49.4]} 6. Bg3 {[%clk 0:04:53.8]} 6... Bxg3
{[%clk 0:04:47.9]} 7. hxg3 {[%clk 0:04:53.7]} 7... Nbd7 {[%clk 0:04:46.1]} 8. c3
{[%clk 0:04:53.2]} 8... c5 {[%clk 0:04:44.8]} 9. Be2 {[%clk 0:04:52.2]} 9... Qc7
{[%clk 0:04:40.1]} 10. O-O {[%clk 0:04:50.5]} 10... O-O {[%clk 0:04:38.3]} 11.
Re1 {[%clk 0:04:48.9]} 11... e5 {[%clk 0:04:28.3]} 12. dxe5 {[%clk 0:04:47.5]}
12... Ng4 {[%clk 0:04:25.2]} 13. Nh4 {[%clk 0:04:42.2]} 13... Be6 {[%clk
0:04:14.1]} 14. Bxg4 {[%clk 0:04:40.4]} 14... Bxg4 {[%clk 0:04:11.8]} 15. Qxg4
{[%clk 0:04:40.3]} 15... Nxe5 {[%clk 0:04:11]} 16. Qg5 {[%clk 0:04:19.1]} 16...
h6 {[%clk 0:04:10]} 17. Qf5 {[%clk 0:04:15.4]} 17... c4 {[%clk 0:04:03]} 18.
Ndf3 {[%clk 0:03:57]} 18... Nd3 {[%clk 0:04:01.4]} 19. Re2 {[%clk 0:03:51.2]}
19... Rad8 {[%clk 0:03:57.2]} 20. Ne1 {[%clk 0:03:40.1]} 20... Ne5 {[%clk
0:03:51]} 21. Nhf3 {[%clk 0:03:37]} 21... Ng6 {[%clk 0:03:39]} 22. Nd4 {[%clk
0:03:34]} 22... Rfe8 {[%clk 0:03:37]} 23. Nef3 {[%clk 0:03:31]} 23... Ne5 {[%clk
0:03:29]} 24. Nxe5 {[%clk 0:03:27.8]} 24... Rxe5 {[%clk 0:03:28.9]} 25. Qf4
{[%clk 0:03:24.8]} 25... g6 {[%clk 0:03:13.4]} 26. Nf3 {[%clk 0:03:02]} 26...
Re7 {[%clk 0:03:08]} 27. Qxc7 {[%clk 0:02:52.6]} 27... Rxc7 {[%clk 0:03:07.9]}
28. Rd1 {[%clk 0:02:51.1]} 28... Kg7 {[%clk 0:03:05.9]} 29. Red2 {[%clk
0:02:50.3]} 29... Rcd7 {[%clk 0:03:04.5]} 30. e4 {[%clk 0:02:49.2]} 1-0

[Event "Live Chess"]
[Site "Chess.com"]
[Date "2024.06.02"]
[Round "-"]
[White "Sir_Sigmund"]
[Black "Frankie_Badacsonyi"]
[Result "0-1"]
[WhiteElo "1870"]
[BlackElo "2406"]
[TimeControl "300"]
[EndTime "17:27:42 PDT"]
[Termination "Frankie_Badacsonyi won by resignation"]

1. e4 {[%clk 0:04:58.4]} 1... c5 {[%clk 0:04:59.1]} 2. Be2 {[%clk 0:04:56.7]}
2... Nc6 {[%clk 0:04:56.8]} 3. d3 {[%clk 0:04:55.6]} 3... g6 {[%clk 0:04:54.6]}
4. f4 {[%clk 0:04:55.1]} 4... Bg7 {[%clk 0:04:53.9]} 5. c3 {[%clk 0:04:54.7]}
5... d5 {[%clk 0:04:52.3]} 6. Nf3 {[%clk 0:04:50.4]} 6... dxe4 {[%clk
0:04:51.1]} 7. dxe4 {[%clk 0:04:50.1]} 7... Qxd1+ {[%clk 0:04:50.5]} 8. Bxd1
{[%clk 0:04:49.8]} 8... Bg4 {[%clk 0:04:49.6]} 9. h3 {[%clk 0:04:46.9]} 9...
Bxf3 {[%clk 0:04:48.8]} 10. Bxf3 {[%clk 0:04:45.5]} 10... e6 {[%clk 0:04:48.7]}
11. e5 {[%clk 0:04:40.7]} 11... Nge7 {[%clk 0:04:47.3]} 12. Be3 {[%clk
0:04:35.6]} 12... b6 {[%clk 0:04:46.4]} 13. Nd2 {[%clk 0:04:23.1]} 13... Nd5
{[%clk 0:04:38.6]} 14. Ke2 {[%clk 0:04:07.1]} 14... Rc8 {[%clk 0:04:36.9]} 15.
Ne4 {[%clk 0:03:57]} 15... Bf8 {[%clk 0:04:18.7]} 16. g3 {[%clk 0:03:40.2]}
16... Be7 {[%clk 0:04:16.8]} 17. h4 {[%clk 0:03:38.1]} 17... h5 {[%clk
0:04:13.2]} 18. Rhc1 {[%clk 0:03:36.6]} 18... O-O {[%clk 0:04:07.1]} 19. Rd1
{[%clk 0:03:29.3]} 19... Rfd8 {[%clk 0:04:02.4]} 20. a3 {[%clk 0:03:21.7]} 20...
Na5 {[%clk 0:03:58.5]} 21. Nd2 {[%clk 0:03:14.8]} 21... Kf8 {[%clk 0:03:43.9]}
22. Bxd5 {[%clk 0:02:49.9]} 22... Rxd5 {[%clk 0:03:36.7]} 23. b4 {[%clk
0:02:40.3]} 23... Nb7 {[%clk 0:03:32.9]} 24. c4 {[%clk 0:02:36.8]} 24... Rd7
{[%clk 0:03:30.9]} 25. b5 {[%clk 0:02:35.8]} 25... Rcd8 {[%clk 0:03:28]} 26. Ne4
{[%clk 0:02:23.7]} 26... Na5 {[%clk 0:03:25.9]} 27. Rxd7 {[%clk 0:02:15.6]}
27... Rxd7 {[%clk 0:03:25.8]} 28. Rc1 {[%clk 0:02:14]} 28... a6 {[%clk
0:03:09.8]} 29. bxa6 {[%clk 0:02:10.9]} 29... Ra7 {[%clk 0:03:08.1]} 30. Nd6
{[%clk 0:01:52.8]} 30... Bxd6 {[%clk 0:02:56.8]} 31. exd6 {[%clk 0:01:52.7]}
31... Ke8 {[%clk 0:02:56]} 32. Kf3 {[%clk 0:01:30.7]} 32... Kd7 {[%clk
0:02:51.1]} 33. g4 {[%clk 0:01:29.9]} 33... hxg4+ {[%clk 0:02:42.3]} 34. Kxg4
{[%clk 0:01:28.1]} 34... Kxd6 {[%clk 0:02:41.5]} 35. Kg5 {[%clk 0:01:27.4]}
35... Ke7 {[%clk 0:02:39.3]} 36. h5 {[%clk 0:01:24.3]} 36... gxh5 {[%clk
0:02:38.2]} 37. Kxh5 {[%clk 0:01:24.2]} 37... Rxa6 {[%clk 0:02:37.3]} 38. Bf2
{[%clk 0:01:21]} 38... Nc6 {[%clk 0:02:29.4]} 39. Rc3 {[%clk 0:01:18]} 39... Ra8
{[%clk 0:02:14.6]} 40. Bh4+ {[%clk 0:01:16.5]} 40... Ke8 {[%clk 0:02:13.3]} 41.
Bf6 {[%clk 0:01:12.3]} 41... Nd4 {[%clk 0:02:01.5]} 42. Rg3 {[%clk 0:01:10.5]}
42... Kd7 {[%clk 0:01:57.5]} 43. Kh6 {[%clk 0:01:03.4]} 43... Nf5+ {[%clk
0:01:55.8]} 0-1

[Event "Live Chess"]
[Site "Chess.com"]
[Date "2024.06.02"]
[Round "-"]
[White "e4evr"]
[Black "wadsy27"]
[Result "0-1"]
[WhiteElo "2272"]
[BlackElo "2584"]
[TimeControl "300"]
[EndTime "17:28:04 PDT"]
[Termination "wadsy27 won by checkmate"]

1. e4 {[%clk 0:04:58.4]} 1... e6 {[%clk 0:04:57.6]} 2. Nc3 {[%clk 0:04:57.9]}
2... d5 {[%clk 0:04:56.6]} 3. d4 {[%clk 0:04:57.4]} 3... Bb4 {[%clk 0:04:54.1]}
4. Bd2 {[%clk 0:04:55.5]} 4... Nf6 {[%clk 0:04:46.5]} 5. e5 {[%clk 0:04:50]}
5... Nfd7 {[%clk 0:04:33.9]} 6. Nce2 {[%clk 0:04:48.6]} 6... Bxd2+ {[%clk
0:04:32.2]} 7. Qxd2 {[%clk 0:04:48.5]} 7... b6 {[%clk 0:04:31.1]} 8. f4 {[%clk
0:04:47.6]} 8... c5 {[%clk 0:04:29.7]} 9. c3 {[%clk 0:04:46.2]} 9... Ba6 {[%clk
0:04:28.4]} 10. Nf3 {[%clk 0:04:45.5]} 10... Nc6 {[%clk 0:04:26.1]} 11. g3
{[%clk 0:04:43.4]} 11... O-O {[%clk 0:04:23.7]} 12. Bg2 {[%clk 0:04:42.5]} 12...
Bxe2 {[%clk 0:04:21.7]} 13. Qxe2 {[%clk 0:04:38.1]} 13... cxd4 {[%clk 0:04:21]}
14. cxd4 {[%clk 0:04:37.1]} 14... b5 {[%clk 0:04:17.3]} 15. Qxb5 {[%clk
0:04:28.7]} 15... Qc7 {[%clk 0:03:40.3]} 16. Rc1 {[%clk 0:04:18.8]} 16... Rfc8
{[%clk 0:03:39]} 17. O-O {[%clk 0:04:15.2]} 17... Rab8 {[%clk 0:03:38.1]} 18.
Qe2 {[%clk 0:04:13.2]} 18... Qb6 {[%clk 0:03:36.8]} 19. Qf2 {[%clk 0:03:57.9]}
19... Qxb2 {[%clk 0:03:32.2]} 20. Rc2 {[%clk 0:03:56.6]} 20... Qb7 {[%clk
0:03:25.9]} 21. Rfc1 {[%clk 0:03:55.4]} 21... Ne7 {[%clk 0:03:24.8]} 22. Bf1
{[%clk 0:03:50]} 22... Nb6 {[%clk 0:03:22]} 23. Rxc8+ {[%clk 0:03:44.4]} 23...
Rxc8 {[%clk 0:03:20.6]} 24. Rxc8+ {[%clk 0:03:42.4]} 24... Qxc8 {[%clk
0:03:20.5]} 25. Qb2 {[%clk 0:03:40.9]} 25... h6 {[%clk 0:03:06.4]} 26. Bd3
{[%clk 0:03:38.4]} 26... Qc6 {[%clk 0:03:01.7]} 27. Kf2 {[%clk 0:03:24.2]} 27...
Qa4 {[%clk 0:02:53.4]} 28. Qc2 {[%clk 0:03:00.1]} 28... Qxc2+ {[%clk 0:02:49.8]}
29. Bxc2 {[%clk 0:02:59]} 29... Nc6 {[%clk 0:02:47.2]} 30. Bb3 {[%clk
0:02:53.9]} 30... a5 {[%clk 0:02:42.2]} 31. a3 {[%clk 0:02:45.5]} 31... Kf8
{[%clk 0:02:31.4]} 32. Ke3 {[%clk 0:02:44.3]} 32... a4 {[%clk 0:02:22.3]} 33.
Ba2 {[%clk 0:02:43.1]} 33... Na7 {[%clk 0:02:15.9]} 34. Ne1 {[%clk 0:02:37.3]}
34... Nb5 {[%clk 0:02:11]} 35. Nc2 {[%clk 0:02:33]} 35... Nc3 {[%clk 0:02:08.2]}
36. Nb4 {[%clk 0:02:30.3]} 36... Nb5 {[%clk 0:01:45.4]} 37. Nc2 {[%clk 0:02:26]}
37... g6 {[%clk 0:01:37.5]} 38. Kd3 {[%clk 0:02:23.5]} 38... h5 {[%clk
0:01:36.1]} 39. Kd2 {[%clk 0:02:07.1]} 39... Ke7 {[%clk 0:01:33.8]} 40. Kd3
{[%clk 0:02:05.7]} 40... Kd7 {[%clk 0:01:32.4]} 41. Kd2 {[%clk 0:02:05.1]} 41...
Kc7 {[%clk 0:01:31.1]} 42. Kd3 {[%clk 0:02:03.8]} 42... Nc8 {[%clk 0:01:30.1]}
43. Bb1 {[%clk 0:02:00]} 43... Ne7 {[%clk 0:01:26.8]} 44. Kd2 {[%clk 0:01:52]}
44... Nf5 {[%clk 0:01:23.7]} 45. Kd3 {[%clk 0:01:51.3]} 45... Nh6 {[%clk
0:01:20.2]} 46. h3 {[%clk 0:01:46.7]} 46... Nf5 {[%clk 0:01:11.6]} 47. g4 {[%clk
0:01:45.8]} 47... hxg4 {[%clk 0:01:10.8]} 48. hxg4 {[%clk 0:01:45.7]} 48... Nh6
{[%clk 0:01:09.8]} 49. g5 {[%clk 0:01:44.2]} 49... Nf5 {[%clk 0:01:08.7]} 50.
Ba2 {[%clk 0:01:43.3]} 50... Ng3 {[%clk 0:00:58.5]} 51. Ne3 {[%clk 0:01:07]}
51... Nh5 {[%clk 0:00:57.5]} 52. Ng2 {[%clk 0:01:03.6]} 52... Kb6 {[%clk
0:00:53.1]} 53. Bb1 {[%clk 0:00:59.1]} 53... Nxa3 {[%clk 0:00:51.7]} 54. Bc2
{[%clk 0:00:58.4]} 54... Nxc2 {[%clk 0:00:49]} 55. Kxc2 {[%clk 0:00:58.3]} 55...
Ka5 {[%clk 0:00:45.3]} 56. Kc3 {[%clk 0:00:57.1]} 56... a3 {[%clk 0:00:44.8]}
57. Kb3 {[%clk 0:00:55.9]} 57... Kb5 {[%clk 0:00:44.4]} 58. Ne3 {[%clk
0:00:52.1]} 58... Nxf4 {[%clk 0:00:43]} 59. Kxa3 {[%clk 0:00:51.5]} 59... Ne2
{[%clk 0:00:37.6]} 60. Ng4 {[%clk 0:00:50]} 60... Nxd4 {[%clk 0:00:33.9]} 61.
Nh6 {[%clk 0:00:49.6]} 61... Nf3 {[%clk 0:00:31.9]} 62. Nxf7 {[%clk 0:00:48.9]}
62... Kc4 {[%clk 0:00:30.4]} 63. Kb2 {[%clk 0:00:41.5]} 63... Kd3 {[%clk
0:00:29.4]} 64. Kc1 {[%clk 0:00:38.5]} 64... Ke2 {[%clk 0:00:28.6]} 65. Nd8
{[%clk 0:00:36.6]} 65... Nxg5 {[%clk 0:00:23.9]} 66. Nc6 {[%clk 0:00:35.8]}
66... Nf3 {[%clk 0:00:23]} 67. Kc2 {[%clk 0:00:33.8]} 67... d4 {[%clk
0:00:21.5]} 68. Kb3 {[%clk 0:00:27.4]} 68... d3 {[%clk 0:00:19.4]} 69. Nb4
{[%clk 0:00:24.2]} 69... d2 {[%clk 0:00:18.7]} 70. Kc4 {[%clk 0:00:23.3]} 70...
d1=Q {[%clk 0:00:17.7]} 71. Kc5 {[%clk 0:00:23.2]} 71... Qc1+ {[%clk 0:00:15.8]}
72. Kd6 {[%clk 0:00:22.1]} 72... Qa3 {[%clk 0:00:14.7]} 73. Kxe6 {[%clk
0:00:21.2]} 73... Qxb4 {[%clk 0:00:13.4]} 74. Kf6 {[%clk 0:00:21.1]} 74... Qc5
{[%clk 0:00:12.6]} 75. e6 {[%clk 0:00:20.1]} 75... Qe5+ {[%clk 0:00:11.8]} 76.
Kf7 {[%clk 0:00:19.3]} 76... Ng5+ {[%clk 0:00:11.2]} 77. Kxg6 {[%clk 0:00:18.2]}
77... Qxe6+ {[%clk 0:00:10.5]} 78. Kxg5 {[%clk 0:00:17.8]} 78... Kf3 {[%clk
0:00:09.8]} 79. Kh5 {[%clk 0:00:16.8]} 79... Qg8 {[%clk 0:00:09]} 80. Kh6 {[%clk
0:00:16.1]} 80... Kf4 {[%clk 0:00:08.4]} 81. Kh5 {[%clk 0:00:16]} 81... Qg5#
{[%clk 0:00:07.7]} 0-1

[Event "Live Chess"]
[Site "Chess.com"]
[Date "2024.06.02"]
[Round "-"]
[White "booktrunk"]
[Black "alicechristina"]
[Result "1-0"]
[WhiteElo "1500"]
[BlackElo "1911"]
[TimeControl "300"]
[EndTime "17:28:09 PDT"]
[Termination "booktrunk won by checkmate"]

1. d4 {[%clk 0:04:48]} 1... d5 {[%clk 0:04:58.3]} 2. g3 {[%clk 0:04:43.3]} 2...
Nf6 {[%clk 0:04:56.5]} 3. Bg2 {[%clk 0:04:42.2]} 3... e6 {[%clk 0:04:56.3]} 4.
a3 {[%clk 0:04:40.1]} 4... Be7 {[%clk 0:04:56.1]} 5. Nc3 {[%clk 0:04:39]} 5...
O-O {[%clk 0:04:54.9]} 6. Bf4 {[%clk 0:04:37.5]} 6... c5 {[%clk 0:04:53.7]} 7.
dxc5 {[%clk 0:04:35.2]} 7... Bxc5 {[%clk 0:04:52.5]} 8. Nf3 {[%clk 0:04:25.2]}
8... Nc6 {[%clk 0:04:48.4]} 9. O-O {[%clk 0:04:19.1]} 9... d4 {[%clk 0:04:45.1]}
10. Na4 {[%clk 0:04:13.5]} 10... Be7 {[%clk 0:04:43.8]} 11. c3 {[%clk
0:04:04.4]} 11... b5 {[%clk 0:04:42.7]} 12. Nxd4 {[%clk 0:03:51]} 12... Nxd4
{[%clk 0:04:36]} 13. cxd4 {[%clk 0:03:48.9]} 13... bxa4 {[%clk 0:04:32.7]} 14.
Bxa8 {[%clk 0:03:46.8]} 14... Nd5 {[%clk 0:04:29.3]} 15. Bxd5 {[%clk 0:03:44.4]}
15... Qxd5 {[%clk 0:04:28.2]} 16. f3 {[%clk 0:03:39.2]} 16... Bf6 {[%clk
0:04:25.5]} 17. Be3 {[%clk 0:03:32.8]} 17... Bb7 {[%clk 0:04:23.2]} 18. Rc1
{[%clk 0:03:28.9]} 18... Rd8 {[%clk 0:04:21.5]} 19. Rc5 {[%clk 0:03:27.2]} 19...
Qd6 {[%clk 0:04:15.2]} 20. Qxa4 {[%clk 0:03:16.4]} 20... e5 {[%clk 0:04:01]} 21.
dxe5 {[%clk 0:03:10.1]} 21... Bxe5 {[%clk 0:03:59.2]} 22. Rcc1 {[%clk
0:03:00.7]} 22... Bxg3 {[%clk 0:03:52.7]} 23. Rcd1 {[%clk 0:02:54.1]} 23...
Bxh2+ {[%clk 0:03:48.2]} 24. Kh1 {[%clk 0:02:51.2]} 24... Qe7 {[%clk 0:03:31]}
25. Rxd8+ {[%clk 0:02:46.4]} 25... Qxd8 {[%clk 0:03:29.7]} 26. Kxh2 {[%clk
0:02:44.9]} 26... Bc8 {[%clk 0:03:28.1]} 27. Rd1 {[%clk 0:02:16.8]} 27... Qc7+
{[%clk 0:03:17.1]} 28. Kg2 {[%clk 0:02:10.9]} 28... Qe5 {[%clk 0:03:00.8]} 29.
Rd8+ {[%clk 0:02:05.6]} 29... Qe8 {[%clk 0:02:58.4]} 30. Rxe8# {[%clk
0:02:02.4]} 1-0

[Event "Live Chess"]
[Site "Chess.com"]
[Date "2024.06.02"]
[Round "-"]
[White "KnightStripes"]
[Black "grillage"]
[Result "0-1"]
[WhiteElo "917"]
[BlackElo "1846"]
[TimeControl "300"]
[EndTime "17:28:48 PDT"]
[Termination "grillage won by checkmate"]

1. d4 {[%clk 0:04:56.9]} 1... e6 {[%clk 0:04:58.7]} 2. Nc3 {[%clk 0:04:55.5]}
2... Bb4 {[%clk 0:04:52.5]} 3. Bf4 {[%clk 0:04:51.2]} 3... Nf6 {[%clk
0:04:37.1]} 4. e3 {[%clk 0:04:49.6]} 4... Nd5 {[%clk 0:04:33.8]} 5. Qd2 {[%clk
0:04:41.7]} 5... Nxf4 {[%clk 0:04:23.6]} 6. e4 {[%clk 0:04:40.5]} 6... Bxc3
{[%clk 0:04:18.6]} 7. Qxc3 {[%clk 0:04:34.5]} 7... O-O {[%clk 0:04:14.7]} 8. Qd2
{[%clk 0:04:29.8]} 8... Ng6 {[%clk 0:04:11.3]} 9. Bd3 {[%clk 0:04:22.3]} 9... d6
{[%clk 0:04:09.3]} 10. Nf3 {[%clk 0:04:19.4]} 10... Nd7 {[%clk 0:04:07]} 11.
O-O-O {[%clk 0:04:16.3]} 11... e5 {[%clk 0:04:05.2]} 12. h4 {[%clk 0:04:09]}
12... Nf4 {[%clk 0:04:01.7]} 13. dxe5 {[%clk 0:04:06.4]} 13... Nxd3+ {[%clk
0:04:00.2]} 14. Qxd3 {[%clk 0:04:04.4]} 14... Nc5 {[%clk 0:03:50]} 15. Qe3
{[%clk 0:03:59.1]} 15... Bg4 {[%clk 0:03:40.7]} 16. h5 {[%clk 0:03:45.8]} 16...
h6 {[%clk 0:03:38.2]} 17. Qd4 {[%clk 0:03:05.1]} 17... Bxf3 {[%clk 0:03:11]} 18.
gxf3 {[%clk 0:03:03.3]} 18... Qg5+ {[%clk 0:03:09.6]} 19. Kb1 {[%clk 0:02:58.4]}
19... Qxe5 {[%clk 0:03:08.5]} 20. Qe3 {[%clk 0:02:42.2]} 20... Ne6 {[%clk
0:03:04.6]} 21. Rhg1 {[%clk 0:02:38.2]} 21... Qf4 {[%clk 0:02:59.1]} 22. Qc3
{[%clk 0:02:33.6]} 22... Ng5 {[%clk 0:02:54.5]} 23. Rd5 {[%clk 0:02:18.8]} 23...
Qxf3 {[%clk 0:02:50.2]} 24. Rdxg5 {[%clk 0:02:15.5]} 24... Qxc3 {[%clk
0:02:47.5]} 25. Rxg7+ {[%clk 0:02:12.3]} 25... Kh8 {[%clk 0:02:46.6]} 26. bxc3
{[%clk 0:02:08]} 26... Rg8 {[%clk 0:02:35.2]} 27. Rxg8+ {[%clk 0:01:57.9]} 27...
Rxg8 {[%clk 0:02:34.6]} 28. Rd1 {[%clk 0:01:48.7]} 28... Rg5 {[%clk 0:02:31.8]}
29. e5 {[%clk 0:01:47]} 29... Rxe5 {[%clk 0:02:28.5]} 30. f4 {[%clk 0:01:45.9]}
30... Rxh5 {[%clk 0:02:27.2]} 31. Re1 {[%clk 0:01:43.9]} 31... Kg7 {[%clk
0:02:25.5]} 32. Re7 {[%clk 0:01:40.4]} 32... Rc5 {[%clk 0:02:24.3]} 33. Kb2
{[%clk 0:01:35.6]} 33... h5 {[%clk 0:02:23.5]} 34. Kb3 {[%clk 0:01:34.1]} 34...
h4 {[%clk 0:02:23]} 35. Kb4 {[%clk 0:01:32.9]} 35... h3 {[%clk 0:02:21.6]} 36.
Re1 {[%clk 0:01:24.8]} 36... h2 {[%clk 0:02:18.7]} 37. Rh1 {[%clk 0:01:23.2]}
37... Rh5 {[%clk 0:02:18.3]} 38. Kc4 {[%clk 0:01:19.6]} 38... Kf6 {[%clk
0:02:17.4]} 39. Kd4 {[%clk 0:01:18.4]} 39... Kf5 {[%clk 0:02:16.6]} 40. Ke3
{[%clk 0:01:17.5]} 40... d5 {[%clk 0:02:14.7]} 41. Kf3 {[%clk 0:01:14.3]} 41...
Rh3+ {[%clk 0:02:13]} 42. Kg2 {[%clk 0:01:12.8]} 42... Rxc3 {[%clk 0:02:11.5]}
43. Rxh2 {[%clk 0:01:11.5]} 43... Rxc2+ {[%clk 0:02:10.6]} 44. Kg3 {[%clk
0:01:09.7]} 44... Rxh2 {[%clk 0:02:09.4]} 45. Kxh2 {[%clk 0:01:09.6]} 45... Kxf4
{[%clk 0:02:08.8]} 46. a4 {[%clk 0:01:07.8]} 46... Ke3 {[%clk 0:02:07.4]} 47. a5
{[%clk 0:01:06.3]} 47... d4 {[%clk 0:02:06.9]} 48. a6 {[%clk 0:01:00.5]} 48...
bxa6 {[%clk 0:02:05.5]} 49. Kg2 {[%clk 0:00:58.9]} 49... d3 {[%clk 0:02:04.8]}
50. Kg3 {[%clk 0:00:55.5]} 50... d2 {[%clk 0:02:03]} 51. Kg2 {[%clk 0:00:54.4]}
51... d1=Q {[%clk 0:02:01]} 52. Kh2 {[%clk 0:00:50.8]} 52... Qg4 {[%clk
0:01:58.7]} 53. Kh1 {[%clk 0:00:49]} 53... Kf2 {[%clk 0:01:57.5]} 54. Kh2 {[%clk
0:00:47.9]} 54... Qg2# {[%clk 0:01:57]} 0-1

[Event "Live Chess"]
[Site "Chess.com"]
[Date "2024.06.02"]
[Round "-"]
[White "RichardABates"]
[Black "TheSmoulderingMaster"]
[Result "1-0"]
[WhiteElo "2330"]
[BlackElo "1761"]
[TimeControl "300"]
[EndTime "17:28:52 PDT"]
[Termination "RichardABates won by resignation"]

1. d4 {[%clk 0:04:55.3]} 1... Nf6 {[%clk 0:04:57.9]} 2. Nf3 {[%clk 0:04:53.3]}
2... g6 {[%clk 0:04:57]} 3. g3 {[%clk 0:04:51.5]} 3... Bg7 {[%clk 0:04:56]} 4.
Bg2 {[%clk 0:04:50]} 4... O-O {[%clk 0:04:55.2]} 5. c4 {[%clk 0:04:47.8]} 5...
d6 {[%clk 0:04:54.3]} 6. Rg1 {[%clk 0:04:45.5]} 6... Nbd7 {[%clk 0:04:50]} 7.
Nc3 {[%clk 0:04:43.6]} 7... e5 {[%clk 0:04:44.7]} 8. dxe5 {[%clk 0:04:41.3]}
8... Nxe5 {[%clk 0:04:43.9]} 9. Nxe5 {[%clk 0:04:39.6]} 9... dxe5 {[%clk
0:04:43.1]} 10. Qxd8 {[%clk 0:04:38.3]} 10... Rxd8 {[%clk 0:04:38.5]} 11. Bg5
{[%clk 0:04:36.6]} 11... Re8 {[%clk 0:04:34.3]} 12. Bxf6 {[%clk 0:04:17]} 12...
Bxf6 {[%clk 0:04:33.1]} 13. Kd2 {[%clk 0:04:12]} 13... c6 {[%clk 0:04:30.8]} 14.
Rad1 {[%clk 0:04:07.8]} 14... Bf5 {[%clk 0:04:28.7]} 15. Be4 {[%clk 0:04:05.1]}
15... Bxe4 {[%clk 0:04:26.3]} 16. Nxe4 {[%clk 0:04:03.6]} 16... Be7 {[%clk
0:04:24]} 17. Kc2 {[%clk 0:04:02.2]} 17... f5 {[%clk 0:04:22.2]} 18. Nd6 {[%clk
0:04:00.6]} 18... Bxd6 {[%clk 0:04:19.9]} 19. Rxd6 {[%clk 0:03:58.7]} 19... Rad8
{[%clk 0:04:18.7]} 20. Rgd1 {[%clk 0:03:57]} 20... Rxd6 {[%clk 0:04:16.3]} 21.
Rxd6 {[%clk 0:03:55.4]} 21... Re7 {[%clk 0:04:16.2]} 22. c5 {[%clk 0:03:52.3]}
22... Kf7 {[%clk 0:04:14.1]} 23. Kc3 {[%clk 0:03:50.6]} 23... a5 {[%clk
0:04:10.6]} 24. Kb3 {[%clk 0:03:47]} 24... Rc7 {[%clk 0:04:07.3]} 25. Ka4 {[%clk
0:03:45.3]} 25... Ke7 {[%clk 0:04:03.8]} 26. Kxa5 {[%clk 0:03:42.7]} 26... b6+
{[%clk 0:04:00.2]} 27. Kxb6 {[%clk 0:03:39.7]} 27... Rc8 {[%clk 0:03:56.6]} 28.
Kb7 {[%clk 0:03:37.8]} 28... Rf8 {[%clk 0:03:50.6]} 29. Kxc6 {[%clk 0:03:34.7]}
29... Rc8+ {[%clk 0:03:49.6]} 30. Kb5 {[%clk 0:03:31.2]} 30... Rb8+ {[%clk
0:03:42.7]} 31. Rb6 {[%clk 0:03:28.3]} 31... Rc8 {[%clk 0:03:41.6]} 32. c6
{[%clk 0:03:26.1]} 32... Kd6 {[%clk 0:03:38.4]} 33. a4 {[%clk 0:03:24.5]} 33...
Kc7 {[%clk 0:03:33.1]} 34. Rb7+ {[%clk 0:03:22.2]} 34... Kd6 {[%clk 0:03:32.3]}
35. Rd7+ {[%clk 0:03:20.7]} 35... Ke6 {[%clk 0:03:31]} 36. Rd2 {[%clk
0:03:17.8]} 36... Rb8+ {[%clk 0:03:28]} 37. Kc5 {[%clk 0:03:16.4]} 37... Rc8
{[%clk 0:03:24]} 38. b4 {[%clk 0:03:14.3]} 38... Rb8 {[%clk 0:03:20.2]} 39. b5
{[%clk 0:03:04.4]} 1-0

[Event "Live Chess"]
[Site "Chess.com"]
[Date "2024.06.02"]
[Round "-"]
[White "WelshTiger"]
[Black "Silverback7829"]
[Result "1-0"]
[WhiteElo "2466"]
[BlackElo "901"]
[TimeControl "300"]
[EndTime "17:29:12 PDT"]
[Termination "WelshTiger won by checkmate"]

1. e4 {[%clk 0:04:55.6]} 1... e5 {[%clk 0:04:57.9]} 2. Nf3 {[%clk 0:04:54.3]}
2... Nc6 {[%clk 0:04:56.1]} 3. Bc4 {[%clk 0:04:53]} 3... Nf6 {[%clk 0:04:52.9]}
4. d4 {[%clk 0:04:51.8]} 4... d5 {[%clk 0:04:45]} 5. exd5 {[%clk 0:04:44.9]}
5... Bb4+ {[%clk 0:04:30.3]} 6. c3 {[%clk 0:04:43.6]} 6... Bd6 {[%clk 0:04:18]}
7. dxc6 {[%clk 0:04:42.3]} 7... bxc6 {[%clk 0:04:10.9]} 8. dxe5 {[%clk
0:04:40.4]} 8... Bxe5 {[%clk 0:04:05]} 9. Qxd8+ {[%clk 0:04:38.3]} 9... Kxd8
{[%clk 0:04:00.3]} 10. Nxe5 {[%clk 0:04:37.5]} 10... Ne4 {[%clk 0:03:44.2]} 11.
Nxf7+ {[%clk 0:04:34.8]} 11... Ke7 {[%clk 0:03:37.6]} 12. Nxh8 {[%clk
0:04:34.7]} 12... Be6 {[%clk 0:03:26.9]} 13. Bxe6 {[%clk 0:04:33]} 13... Kxe6
{[%clk 0:03:23.9]} 14. O-O {[%clk 0:04:28.7]} 14... Rxh8 {[%clk 0:03:19.8]} 15.
Re1 {[%clk 0:04:27.9]} 15... Ke5 {[%clk 0:03:09.6]} 16. Nd2 {[%clk 0:04:26]}
16... Rf8 {[%clk 0:02:57.1]} 17. Nxe4 {[%clk 0:04:24.5]} 17... Kd5 {[%clk
0:02:38.5]} 18. Bg5 {[%clk 0:04:18]} 18... Ke6 {[%clk 0:02:26.8]} 19. Rad1
{[%clk 0:04:10.1]} 19... Kf7 {[%clk 0:02:22.6]} 20. Rd7+ {[%clk 0:04:07.9]}
20... Kg8 {[%clk 0:02:18.8]} 21. Rd8 {[%clk 0:04:00.9]} 21... Rxd8 {[%clk
0:02:12.2]} 22. Bxd8 {[%clk 0:04:00.8]} 22... a5 {[%clk 0:02:03.1]} 23. Bxc7
{[%clk 0:04:00.7]} 23... h6 {[%clk 0:01:57.1]} 24. Bxa5 {[%clk 0:03:57.8]} 24...
Kh7 {[%clk 0:01:54]} 25. Bc7 {[%clk 0:03:55.8]} 25... Kg8 {[%clk 0:01:51.6]} 26.
a4 {[%clk 0:03:55]} 26... Kf8 {[%clk 0:01:40]} 27. a5 {[%clk 0:03:54.5]} 27...
Ke7 {[%clk 0:01:37.2]} 28. a6 {[%clk 0:03:53.9]} 28... Kd7 {[%clk 0:01:33.5]}
29. Bb6 {[%clk 0:03:53]} 29... Kc8 {[%clk 0:01:29.8]} 30. Rd1 {[%clk 0:03:50.1]}
30... Kb8 {[%clk 0:01:23.5]} 31. Rd8# {[%clk 0:03:48.7]} 1-0